fUST/lending_fUST_20250901
["ID","MTS","AMOUNT","RATE_DAILY","PERIOD"]
[382557297,1756666259361,-480.0,0.00017519,2]
[382557299,1756666259371,-599.13,0.00017519,2]
[382557301,1756666259381,-480.0,0.00017519,2]
[382557303,1756666259390,-578.41,0.00017519,2]
[382557305,1756666259399,-480.0,0.00017519,2]
[382557306,1756666259409,-480.0,0.00017519,2]
[382557308,1756666259418,-480.0,0.00017519,2]
[382557310,1756666259427,-480.0,0.00017519,2]
[382557312,1756666259437,-480.0,0.00017519,2]
[382557314,1756666259446,-480.0,0.00017519,2]
[382557317,1756666259457,-151.0,0.00017519,2]
[382557318,1756666259466,-480.0,0.00017519,2]
[382557320,1756666259476,-480.0,0.00017519,2]
[382557323,1756666259487,-480.0,0.00017519,2]
[382557324,1756666259498,-480.0,0.00017519,2]
[382557327,1756666259508,-834.99,0.00017519,2]
[382557328,1756666259517,-480.0,0.00017519,2]
[382557330,1756666259527,-480.0,0.00017519,2]
[382557332,1756666259536,-480.0,0.00017519,2]
[382557334,1756666259548,-480.0,0.00017519,2]
[382557336,1756666259562,-1131.92,0.00017519,2]
[382557338,1756666259571,-480.0,0.00017519,2]
[382557340,1756666259580,-480.0,0.00017519,2]
[382557342,1756666259590,-500.0,0.00017519,2]
[382557344,1756666259600,-916.59,0.00017519,2]
[382557346,1756666259609,-151.0,0.00017519,2]
[382557348,1756666259619,-480.0,0.00017519,2]
[382557350,1756666259631,-750.53,0.00017519,2]
[382557352,1756666259641,-558.42,0.00017519,2]
[382557355,1756666259653,-480.0,0.00017519,2]
[382557356,1756666259662,-480.0,0.00017519,2]
[382557359,1756666259672,-381.05063748,0.00017519,2]
[382557361,1756666259682,-776.49,0.00017519,2]
[382557363,1756666259691,-480.0,0.00017519,2]
[382557365,1756666259700,-480.0,0.00017519,2]
[382557367,1756666259710,-647.25,0.00017519,2]
[382557369,1756666259720,-480.0,0.00017519,2]
[382557371,1756666259729,-480.0,0.00017519,2]
[382557373,1756666259739,-480.0,0.00017519,2]
[382557375,1756666259748,-151.0,0.00017519,2]
[382557377,1756666259757,-151.0,0.00017519,2]
[382557379,1756666259767,-151.0,0.00017519,2]
[382557381,1756666259776,-506.84,0.00017519,2]
[382557383,1756666259786,-151.0,0.00017519,2]
[382557385,1756666259795,-480.0,0.00017519,2]
[382557387,1756666259804,-973.22,0.00017519,2]
[382557389,1756666259814,-480.0,0.00017519,2]
[382557391,1756666259823,-151.0,0.00017519,2]
[382557393,1756666259832,-1491.78,0.00017519,2]
[382557395,1756666259841,-545.46,0.00017519,2]
[382557397,1756666259851,-151.0,0.00017519,2]
[382557399,1756666259863,-480.0,0.00017519,2]
[382557401,1756666259872,-1238.5,0.00017519,2]
[382557403,1756666259882,-480.0,0.00017519,2]
[382557405,1756666259891,-480.0,0.00017519,2]
[382557407,1756666259901,-38.76679831,0.00017519,2]
[382557469,1756666260491,-441.23320169,0.00017519,2]
[382557471,1756666260501,-255.97603997,0.00017519,2]
[382557542,1756666261187,-480.0,0.00016695,2]
[382557543,1756666261197,-449.66343807,0.00016695,2]
[382557925,1756666265517,5000.0,0.000165,2]
[382558459,1756666272834,1263.94996233,0.000165,2]
[382558463,1756666272858,490.8910962,0.000165,2]
[382559352,1756666282046,168.46392776,0.000165,2]
[382559700,1756666364474,1000.0,0.00015671,2]
[382559701,1756666393876,153.432348,0.000249,30]
[382559702,1756666402945,695.36080546,0.00016466,2]
[382559703,1756666438006,347.68040273,0.00016466,2]
[382559704,1756666469259,176.39826209,0.00016113,2]
[382559705,1756666479942,1672.08244476,0.00016466,2]
[382559706,1756666520630,1084.21344137,0.00016466,2]
[382559707,1756666545375,366.55459544,0.00016113,2]
[382559708,1756666614745,5753.43,0.00015563,2]
[382559709,1756666619651,599.65085361,0.00013699,2]
[382559710,1756666619676,470.38683939,0.00013699,2]
[382559712,1756666634815,9529.62316061,0.00016,2]
[382559713,1756666634837,10000.01,0.00016,2]
[382559714,1756666634863,10000.01,0.00016,2]
[382559715,1756666634886,10000.01,0.00016,2]
[382559716,1756666634913,10000.01,0.00016,2]
[382559717,1756666634936,10000.01,0.00016,2]
[382559718,1756666634960,10000.01,0.00016,2]
[382559719,1756666634982,10000.01,0.00016,2]
[382559720,1756666635004,10000.01,0.00016,2]
[382559721,1756666635026,10000.01,0.00016,2]
[382559722,1756666635053,1754.77009705,0.00016,2]
[382559723,1756666650144,5000.0,0.000165,2]
[382559724,1756666653664,5000.01,0.00016,2]
[382559725,1756666653687,10000.01,0.00016,2]
[382559726,1756666653712,10000.01,0.00016,2]
[382559727,1756666653736,9696.66561,0.00016,2]
[382559728,1756666665990,303.34439,0.000165,2]
[382559729,1756666666013,4696.65561,0.000165,2]
[382559730,1756666674393,5000.0,0.000165,2]
[382559731,1756666675524,303.35439,0.00016064,2]
[382559732,1756666675547,344.64080864,0.00016064,2]
[382559733,1756666686737,1463.0721392,0.00016461,2]
[382559734,1756666690280,5000.0,0.000165,2]
[382559735,1756666713004,3192.29705216,0.000165,2]
[382559736,1756666713027,1807.70294784,0.000165,2]
[382559737,1756666721412,156.06169757,0.00016453,2]
[382559738,1756666770936,646.09738959,0.0001613,2]
[382559739,1756666862039,867.37075308,0.00016466,2]
[382559740,1756666863367,1774.92541464,0.000165,2]
[382559741,1756666866938,395.054293,0.00015561,2]
[382559742,1756666892142,1280.1881218,0.00016459,2]
[382559747,1756666931244,153.432348,0.000249,30]
[382559748,1756666931458,2662.38812195,0.000165,2]
[382559749,1756666932817,410.22126053,0.000165,2]
[382559750,1756666932838,920.97280045,0.000165,2]
[382559751,1756666934050,665.59703049,0.000165,2]
[382559752,1756666935250,332.79851525,0.000165,2]
[382559753,1756666936200,166.39925762,0.000165,2]
[382559754,1756666940940,5000.0,0.000165,2]
[382559755,1756666967131,666.0,0.00015561,2]
[382559756,1756666974940,163.18205561,0.000165,2]
[382559757,1756667004891,163.18205561,0.000165,2]
[382559761,1756667124549,1921.87828497,0.00015558,2]
[382559762,1756667124572,8078.12171503,0.00015558,2]
[382559763,1756667134697,1120.16460654,0.00016457,2]
[382559764,1756667164836,166.39925762,0.000165,2]
[382559765,1756667202504,635.32442081,0.00016466,2]
[382559766,1756667202525,447.85751734,0.00016466,2]
[382559767,1756667280466,283.61,0.00015984,2]
[382559768,1756667280775,283.61,0.00015984,2]
[382559769,1756667281095,283.61,0.00015984,2]
[382559770,1756667352124,-351.64118097,0.00016543,2]
[382559771,1756667352146,-150.75878594,0.00016543,2]
[382559772,1756667352170,-400.0,0.0001655,2]
[382559773,1756667352206,-420.0,0.00016553,2]
[382559774,1756667352232,-300.0,0.00016554,2]
[382559775,1756667352252,-400.23583239,0.00016555,2]
[382559776,1756667352272,-500.0,0.00016555,2]
[382559777,1756667352291,-213.65579071,0.00016555,2]
[382559778,1756667352312,-500.0,0.00016555,2]
[382559779,1756667352333,-500.0,0.00016555,2]
[382559780,1756667352354,-474.29083928,0.00016555,2]
[382559781,1756667352377,-500.0,0.00016555,2]
[382559782,1756667352398,-500.0,0.00016555,2]
[382559783,1756667352413,-500.0,0.00016555,2]
[382559784,1756667352432,-403.00968153,0.00016555,2]
[382559785,1756667376276,980.14403074,0.00016455,2]
[382559786,1756667402913,4639.77739862,0.000165,2]
[382559819,1756667432534,-300.0,0.00016554,2]
[382559821,1756667432544,-300.0,0.00016554,2]
[382559823,1756667432554,-300.0,0.00016554,2]
[382559825,1756667432563,-1200.0,0.00016554,2]
[382559827,1756667432572,-674.42,0.00016554,2]
[382559829,1756667432582,-96.99031847,0.00016555,2]
[382559831,1756667432591,-500.0,0.00016555,2]
[382559834,1756667432601,-500.0,0.00016555,2]
[382559836,1756667432610,-500.0,0.00016555,2]
[382559838,1756667432619,-500.0,0.00016555,2]
[382559839,1756667432628,-500.0,0.00016555,2]
[382559840,1756667432637,-500.0,0.00016555,2]
[382559841,1756667432647,-500.0,0.00016555,2]
[382559842,1756667432656,-358.8151721,0.00016555,2]
[382559843,1756667432665,-500.0,0.00016555,2]
[382559844,1756667432674,-500.0,0.00016555,2]
[382559845,1756667432684,-500.0,0.00016555,2]
[382559846,1756667432693,-500.0,0.00016555,2]
[382559847,1756667432703,-547.79524126,0.00016555,2]
[382559848,1756667432712,-500.0,0.00016555,2]
[382559849,1756667432721,-500.0,0.00016555,2]
[382559850,1756667432731,-500.0,0.00016555,2]
[382559851,1756667432740,-500.0,0.00016555,2]
[382559852,1756667432750,-500.0,0.00016555,2]
[382559853,1756667432761,-233.68744969,0.00016555,2]
[382559854,1756667432770,-500.0,0.00016555,2]
[382559855,1756667432781,-500.0,0.00016555,2]
[382559856,1756667432791,-500.0,0.00016555,2]
[382559857,1756667432801,-500.0,0.00016555,2]
[382559858,1756667432810,-337.27939866,0.00016555,2]
[382559859,1756667432819,-500.0,0.00016555,2]
[382559860,1756667432828,-500.0,0.00016555,2]
[382559861,1756667432839,-500.0,0.00016555,2]
[382559862,1756667432849,-500.0,0.00016555,2]
[382559863,1756667432859,-500.0,0.00016555,2]
[382559864,1756667432870,-500.0,0.00016555,2]
[382559865,1756667432881,-500.0,0.00016555,2]
[382559866,1756667432891,-500.0,0.00016555,2]
[382559867,1756667432902,-500.0,0.00016555,2]
[382559868,1756667432911,-600.0,0.00016555,2]
[382559869,1756667432921,-500.0,0.00016555,2]
[382559870,1756667432930,-251.65542366,0.00016555,2]
[382559871,1756667432941,-500.0,0.00016555,2]
[382559872,1756667432951,-500.0,0.00016555,2]
[382559873,1756667432961,-500.0,0.00016555,2]
[382559874,1756667432971,-500.0,0.00016555,2]
[382559875,1756667432981,-500.0,0.00016555,2]
[382559876,1756667432991,-500.0,0.00016555,2]
[382559877,1756667433002,-500.0,0.00016555,2]
[382559878,1756667433012,-500.0,0.00016555,2]
[382559879,1756667433022,-500.0,0.00016555,2]
[382559880,1756667433031,-500.0,0.00016555,2]
[382559881,1756667433042,-500.0,0.00016555,2]
[382559882,1756667433051,-500.0,0.00016555,2]
[382559883,1756667433061,-500.0,0.00016555,2]
[382559884,1756667433070,-500.0,0.00016555,2]
[382559885,1756667433080,-500.0,0.00016555,2]
[382559886,1756667433089,-500.0,0.00016555,2]
[382559887,1756667433099,-500.0,0.00016555,2]
[382559889,1756667433109,-500.0,0.00016555,2]
[382559891,1756667433118,-500.0,0.00016555,2]
[382559893,1756667433127,-500.0,0.00016555,2]
[382559894,1756667433136,-500.0,0.00016555,2]
[382559895,1756667433145,-500.0,0.00016555,2]
[382559896,1756667433156,-500.0,0.00016555,2]
[382559897,1756667433166,-500.0,0.00016555,2]
[382559898,1756667433176,-500.0,0.00016555,2]
[382559899,1756667433185,-500.0,0.00016555,2]
[382559900,1756667433195,-500.0,0.00016555,2]
[382559901,1756667433204,-500.0,0.00016555,2]
[382559902,1756667433214,-500.0,0.00016555,2]
[382559903,1756667433223,-500.0,0.00016555,2]
[382559904,1756667433234,-500.0,0.00016555,2]
[382559905,1756667433244,-500.0,0.00016555,2]
[382559906,1756667433254,-500.0,0.00016555,2]
[382559907,1756667433264,-500.0,0.00016555,2]
[382559908,1756667433273,-500.0,0.00016555,2]
[382559909,1756667433283,-500.0,0.00016555,2]
[382559910,1756667433295,-500.0,0.00016555,2]
[382559911,1756667433304,-373.20168578,0.00016555,2]
[382559912,1756667433314,-500.0,0.00016555,2]
[382559913,1756667433324,-500.0,0.00016555,2]
[382559914,1756667433334,-500.0,0.00016555,2]
[382559915,1756667433343,-500.0,0.00016555,2]
[382559916,1756667433353,-500.0,0.00016555,2]
[382559917,1756667433363,-500.0,0.00016555,2]
[382559918,1756667433372,-500.0,0.00016555,2]
[382559919,1756667433382,-500.0,0.00016555,2]
[382559920,1756667433391,-500.0,0.00016555,2]
[382559921,1756667433401,-615.96102058,0.00016555,2]
[382559922,1756667433411,-500.0,0.00016555,2]
[382559923,1756667433420,-500.0,0.00016555,2]
[382559924,1756667433429,-500.0,0.00016555,2]
[382559925,1756667433439,-500.0,0.00016555,2]
[382559926,1756667433448,-500.0,0.00016555,2]
[382559927,1756667433458,-480.0,0.00016556,2]
[382559928,1756667433468,-480.0,0.00016556,2]
[382559929,1756667433477,-307.52094341,0.00016556,2]
[382559930,1756667438427,-708.67905659,0.00016556,2]
[382559931,1756667438437,-1221.41,0.00016556,2]
[382559932,1756667438446,-480.0,0.00016556,2]
[382559933,1756667438456,-1371.2,0.00016557,2]
[382559934,1756667438465,-480.0,0.00016557,2]
[382559935,1756667438475,-480.0,0.00016557,2]
[382559936,1756667438484,-496.73,0.00016557,2]
[382559937,1756667438493,-681.76,0.00016557,2]
[382559938,1756667438503,-480.0,0.00016557,2]
[382559940,1756667438512,-480.0,0.00016557,2]
[382559941,1756667438521,-480.0,0.00016557,2]
[382559942,1756667438531,-577.04675816,0.00016557,2]
[382559943,1756667438540,-512.57,0.00016557,2]
[382559944,1756667438549,-2150.36,0.00016557,2]
[382559945,1756667438558,-550.15,0.00016557,2]
[382559946,1756667438568,-480.0,0.00016557,2]
[382559947,1756667438578,-1279.4,0.00016557,2]
[382559948,1756667438587,-1948.85,0.00016557,2]
[382559949,1756667438597,-495.43,0.00016557,2]
[382559950,1756667438607,-1802.96,0.00016557,2]
[382559951,1756667438617,-500.0,0.00016557,2]
[382559952,1756667438627,-500.0,0.00016557,2]
[382559953,1756667438636,-480.0,0.00016557,2]
[382559954,1756667438645,-151.0,0.00016557,2]
[382559955,1756667438654,-610.41,0.00016557,2]
[382559956,1756667438663,-216.52043987,0.00016557,2]
[382559957,1756667438672,-480.0,0.00016557,2]
[382559958,1756667438682,-727.24,0.00016557,2]
[382559959,1756667438691,-500.0,0.00016557,2]
[382559960,1756667438700,-566.15,0.00016559,2]
[382559961,1756667438709,-480.0,0.00016559,2]
[382559962,1756667438719,-996.63,0.00016559,2]
[382559963,1756667438729,-775.71,0.00016559,2]
[382559964,1756667438739,-1024.41,0.00016559,2]
[382559965,1756667438749,-500.0,0.00016559,2]
[382559967,1756667438759,-480.0,0.00016559,2]
[382559968,1756667438770,-480.0,0.00016559,2]
[382559969,1756667438779,-516.72,0.00016559,2]
[382559970,1756667438788,-532.12,0.00016559,2]
[382559971,1756667438799,-960.24,0.00016559,2]
[382559972,1756667438808,-480.0,0.00016559,2]
[382559973,1756667438818,-972.19,0.00016559,2]
[382559974,1756667438827,-480.0,0.00016559,2]
[382559975,1756667438837,-739.13,0.0001656,2]
[382559976,1756667438847,-5980.27,0.0001656,2]
[382559977,1756667438856,-1259.63,0.0001656,2]
[382559978,1756667438867,-4896.03,0.0001656,2]
[382559979,1756667438876,-610.66,0.0001656,2]
[382559980,1756667438885,-1048.86,0.0001656,2]
[382559981,1756667438894,-500.0,0.00016561,2]
[382559982,1756667438904,-984.15,0.00016561,2]
[382559983,1756667438913,-480.0,0.00016561,2]
[382559984,1756667438923,-480.0,0.00016561,2]
[382559985,1756667438932,-480.0,0.00016561,2]
[382559986,1756667438941,-480.0,0.00016561,2]
[382559987,1756667438950,-526.77,0.00016561,2]
[382559988,1756667438959,-480.0,0.00016561,2]
[382559989,1756667438968,-480.0,0.00016561,2]
[382559990,1756667438977,-480.0,0.00016561,2]
[382559991,1756667438987,-631.42,0.00016561,2]
[382559992,1756667438996,-480.0,0.00016561,2]
[382559993,1756667439006,-480.0,0.00016561,2]
[382559994,1756667439015,-502.36,0.00016561,2]
[382559995,1756667439025,-1549.42,0.00016561,2]
[382559996,1756667439034,-480.0,0.00016561,2]
[382559997,1756667439044,-480.0,0.00016561,2]
[382559998,1756667439055,-480.0,0.00016561,2]
[382559999,1756667439066,-480.0,0.00016561,2]
[382560000,1756667439076,-480.0,0.00016561,2]
[382560001,1756667439085,-530.04,0.00016561,2]
[382560002,1756667439095,-513.79,0.00016561,2]
[382560003,1756667439105,-480.0,0.00016561,2]
[382560004,1756667439114,-480.0,0.00016561,2]
[382560005,1756667439124,-151.0,0.00016561,2]
[382560006,1756667439133,-151.0,0.00016561,2]
[382560007,1756667439143,-500.0,0.00016561,2]
[382560008,1756667439152,-500.0,0.00016561,2]
[382560009,1756667439161,-500.0,0.00016561,2]
[382560010,1756667439170,-151.0,0.00016561,2]
[382560011,1756667439180,-151.0,0.00016561,2]
[382560012,1756667439190,-151.0,0.00016561,2]
[382560013,1756667439201,-151.0,0.00016561,2]
[382560014,1756667439210,-480.0,0.00016561,2]
[382560015,1756667439220,-480.0,0.00016561,2]
[382560016,1756667439230,-732.02,0.00016561,2]
[382560017,1756667439240,-687.45,0.00016561,2]
[382560018,1756667439249,-812.42,0.00016561,2]
[382560019,1756667439259,-480.0,0.00016561,2]
[382560020,1756667439269,-734.57,0.00016561,2]
[382560021,1756667439279,-1065.94,0.00016561,2]
[382560022,1756667439291,-1182.31,0.00016561,2]
[382560023,1756667439302,-480.0,0.00016561,2]
[382560024,1756667439311,-833.06,0.00016561,2]
[382560025,1756667439321,-201.64979696,0.00016561,2]
[382560026,1756667439330,-480.0,0.00016561,2]
[382560027,1756667439342,-502.05,0.00016561,2]
[382560028,1756667439351,-491.56,0.00016561,2]
[382560029,1756667439361,-480.0,0.00016561,2]
[382560030,1756667439371,-506.28,0.00016561,2]
[382560031,1756667439380,-480.0,0.00016561,2]
[382560032,1756667439390,-480.0,0.00016561,2]
[382560033,1756667439400,-480.0,0.00016561,2]
[382560034,1756667439409,-480.0,0.00016561,2]
[382560035,1756667439418,-625.11,0.00016561,2]
[382560036,1756667439427,-480.0,0.00016561,2]
[382560037,1756667439441,-746.31,0.00016561,2]
[382560038,1756667439454,-923.5,0.00016561,2]
[382560039,1756667439468,-970.69,0.00016561,2]
[382560040,1756667439480,-480.0,0.00016561,2]
[382560041,1756667439491,-480.0,0.00016561,2]
[382560042,1756667439503,-562.55,0.00016561,2]
[382560043,1756667439515,-480.0,0.00016561,2]
[382560044,1756667439529,-480.0,0.00016561,2]
[382560045,1756667439541,-1838.99,0.00016561,2]
[382560046,1756667439554,-480.0,0.00016561,2]
[382560047,1756667439567,-480.0,0.00016561,2]
[382560048,1756667439581,-958.89,0.00016561,2]
[382560049,1756667439594,-480.0,0.00016561,2]
[382560050,1756667439606,-1508.35,0.00016561,2]
[382560051,1756667439618,-480.0,0.00016561,2]
[382560052,1756667439630,-679.18,0.00016561,2]
[382560053,1756667439642,-480.0,0.00016561,2]
[382560054,1756667439655,-830.89,0.00016561,2]
[382560055,1756667439668,-991.88,0.00016561,2]
[382560056,1756667439679,-480.0,0.00016561,2]
[382560057,1756667439690,-828.29,0.00016561,2]
[382560058,1756667439700,-480.0,0.00016561,2]
[382560059,1756667439712,-480.0,0.00016561,2]
[382560060,1756667439723,-838.22,0.00016561,2]
[382560061,1756667439735,-480.0,0.00016561,2]
[382560062,1756667439747,-480.0,0.00016561,2]
[382560063,1756667439760,-4827.11,0.00016561,2]
[382560064,1756667439775,-480.0,0.00016561,2]
[382560065,1756667439788,-480.0,0.00016561,2]
[382560066,1756667439802,-1192.09,0.00016561,2]
[382560067,1756667439815,-2615.67,0.00016561,2]
[382560068,1756667439825,-480.0,0.00016561,2]
[382560069,1756667439836,-480.0,0.00016561,2]
[382560070,1756667439846,-642.11,0.00016561,2]
[382560071,1756667439857,-480.0,0.00016561,2]
[382560072,1756667439871,-480.0,0.00016561,2]
[382560073,1756667439885,-480.0,0.00016561,2]
[382560074,1756667439897,-754.99,0.00016561,2]
[382560075,1756667439907,-562.55,0.00016561,2]
[382560076,1756667439920,-480.0,0.00016561,2]
[382560077,1756667439933,-480.0,0.00016561,2]
[382560078,1756667439965,-480.0,0.00016561,2]
[382560079,1756667439978,-480.0,0.00016561,2]
[382560080,1756667439991,-480.0,0.00016561,2]
[382560081,1756667440002,-480.0,0.00016561,2]
[382560082,1756667440017,-480.0,0.00016561,2]
[382560083,1756667440031,-480.0,0.00016561,2]
[382560084,1756667440046,-480.0,0.00016561,2]
[382560085,1756667440060,-480.0,0.00016561,2]
[382560086,1756667440075,-212030.17614249,0.00016562,2]
[382560087,1756667440097,-420.0,0.00016566,2]
[382560089,1756667440112,-1083.18193812,0.00016567,2]
[382560090,1756667440128,-151.0,0.000166,2]
[382560091,1756667440141,-151.0,0.000166,2]
[382560092,1756667440155,-151.0,0.000166,2]
[382560093,1756667440169,-2003.25380399,0.000166,2]
[382560094,1756667440181,-2989.03,0.00016659,2]
[382560095,1756667440195,-1200.72,0.00016659,2]
[382560096,1756667440208,-480.0,0.00016659,2]
[382560097,1756667440220,-2184.82,0.00016659,2]
[382560098,1756667440233,-1077.34,0.00016659,2]
[382560099,1756667440245,-698.87,0.00016659,2]
[382560100,1756667440258,-1393.91,0.00016659,2]
[382560101,1756667440270,-480.0,0.00016659,2]
[382560102,1756667440282,-588.89,0.00016661,2]
[382560103,1756667440299,-480.0,0.00016661,2]
[382560104,1756667440311,-1026.89,0.00016661,2]
[382560105,1756667440323,-480.0,0.00016661,2]
[382560106,1756667440336,-480.0,0.00016661,2]
[382560107,1756667440352,-480.0,0.00016661,2]
[382560108,1756667440365,-924.16,0.00016661,2]
[382560109,1756667440376,-558.57,0.00016661,2]
[382560110,1756667440388,-480.0,0.00016661,2]
[382560111,1756667440400,-781.04,0.00016661,2]
[382560113,1756667440412,-480.0,0.00016661,2]
[382560116,1756667440423,-644.36,0.00016661,2]
[382560118,1756667440435,-480.0,0.00016661,2]
[382560120,1756667440447,-480.0,0.00016661,2]
[382560122,1756667440459,-480.0,0.00016661,2]
[382560124,1756667440470,-503.8,0.00016661,2]
[382560126,1756667440481,-1380.57,0.00016661,2]
[382560129,1756667440495,-480.0,0.00016661,2]
[382560131,1756667440507,-1236.87,0.00016661,2]
[382560133,1756667440518,-480.0,0.00016661,2]
[382560135,1756667440530,-480.0,0.00016661,2]
[382560137,1756667440541,-1001.79,0.00016661,2]
[382560140,1756667440552,-480.0,0.00016661,2]
[382560142,1756667440564,-480.0,0.00016661,2]
[382560144,1756667440575,-1132.49,0.00016661,2]
[382560146,1756667440586,-480.0,0.00016661,2]
[382560148,1756667440598,-480.0,0.00016661,2]
[382560151,1756667440611,-1079.02,0.00016661,2]
[382560154,1756667440622,-480.0,0.00016661,2]
[382560157,1756667440634,-480.0,0.00016661,2]
[382560159,1756667440645,-480.0,0.00016661,2]
[382560161,1756667440657,-480.0,0.00016661,2]
[382560164,1756667440669,-480.0,0.00016661,2]
[382560166,1756667440680,-480.0,0.00016661,2]
[382560168,1756667440691,-1020.26,0.00016661,2]
[382560170,1756667440703,-480.0,0.00016661,2]
[382560172,1756667440715,-992.33,0.00016661,2]
[382560174,1756667440726,-1033.39,0.00016661,2]
[382560177,1756667440738,-480.0,0.00016661,2]
[382560179,1756667440749,-480.0,0.00016661,2]
[382560181,1756667440760,-1210.91,0.00016661,2]
[382560183,1756667440771,-1008.2,0.00016661,2]
[382560185,1756667440782,-925.92,0.00016661,2]
[382560187,1756667440794,-1254.49,0.00016661,2]
[382560189,1756667440806,-480.0,0.00016661,2]
[382560192,1756667440817,-480.0,0.00016661,2]
[382560194,1756667440828,-480.0,0.00016661,2]
[382560196,1756667440839,-672.84,0.00016661,2]
[382560198,1756667440850,-1120.56,0.00016661,2]
[382560200,1756667440861,-480.0,0.00016661,2]
[382560202,1756667440873,-643.75,0.00016661,2]
[382560204,1756667440884,-1366.78,0.00016661,2]
[382560206,1756667440895,-782.61,0.00016661,2]
[382560209,1756667440906,-496.63,0.00016661,2]
[382560211,1756667440916,-480.0,0.00016661,2]
[382560212,1756667440928,-480.0,0.00016661,2]
[382560214,1756667440940,-1083.18193812,0.00016667,2]
[382560217,1756667440951,-1083.18,0.00016668,2]
[382560219,1756667440962,-150.35,0.00016668,2]
[382560221,1756667440974,-150.35,0.00016668,2]
[382560223,1756667440985,-150.35,0.00016668,2]
[382560225,1756667440997,-150.35,0.00016668,2]
[382560227,1756667441010,-150.35,0.00016668,2]
[382560230,1756667441021,-150.36,0.00016668,2]
[382560232,1756667441033,-480.0,0.00016694,2]
[382560234,1756667441044,-480.0,0.00016694,2]
[382560236,1756667441056,-480.0,0.00016694,2]
[382560237,1756667441068,-480.0,0.00016694,2]
[382560238,1756667441080,-480.0,0.00016694,2]
[382560239,1756667441092,-480.0,0.00016694,2]
[382560240,1756667441104,-480.0,0.00016694,2]
[382560241,1756667441115,-480.0,0.00016694,2]
[382560242,1756667441126,-480.0,0.00016694,2]
[382560243,1756667441138,-612.95439671,0.00016694,2]
[382560244,1756667441150,-480.0,0.00016694,2]
[382560245,1756667441161,-480.0,0.00016694,2]
[382560246,1756667441172,-1099.8,0.00016694,2]
[382560247,1756667441184,-480.0,0.00016694,2]
[382560248,1756667441195,-855.52,0.00016694,2]
[382560249,1756667441208,-480.0,0.00016694,2]
[382560250,1756667441220,-1241.19,0.00016694,2]
[382560251,1756667441231,-480.0,0.00016694,2]
[382560252,1756667441243,-416.68614184,0.00016694,2]
[382560253,1756667441256,-590.93,0.00016694,2]
[382560254,1756667441268,-942.5,0.00016694,2]
[382560255,1756667441280,-480.0,0.00016694,2]
[382560256,1756667441291,-480.0,0.00016694,2]
[382560257,1756667441305,-480.0,0.00016694,2]
[382560258,1756667441316,-480.0,0.00016694,2]
[382560259,1756667441327,-480.0,0.00016694,2]